[Event "Titled Tuesday Blitz May 9 Late 2023"]
[White "Prado, Alexandra"]
[Black "Smiechu"]
[WhiteFideId "3301346"]
[WhiteElo "1759"]
[BlackElo "2318"]
[Result "0-1"]
[Round "03"]
[TimeControl "180+2"]
[Date "2023.05.09"]
[WhiteClock "0:00:00"]
[BlackClock "0:01:20"]

1. e4 {[%clk 0:02:59]}  c5 {[%clk 0:02:59]} 2. Nf3 {[%clk 0:02:53]}  g6 {[%clk 0:02:58]} 3. c3 {[%clk 0:02:42]}  Bg7 {[%clk 0:02:57]} 4. d4 {[%clk 0:02:42]}  cxd4 {[%clk 0:02:58]} 5. cxd4 {[%clk 0:02:43]}  d5 {[%clk 0:02:58]} 6. e5 {[%clk 0:02:41]}  Nh6 {[%clk 0:02:59]} 7. Nc3 {[%clk 0:02:16]}  O-O {[%clk 0:02:57]} 8. Bd3 {[%clk 0:02:08]}  Nc6 {[%clk 0:02:54]} 9. O-O {[%clk 0:02:06]}  Bg4 {[%clk 0:02:46]} 10. Be2 {[%clk 0:01:48]}  e6 {[%clk 0:02:44]} 11. h3 {[%clk 0:01:43]}  Bxf3 {[%clk 0:02:44]} 12. Bxf3 {[%clk 0:01:42]}  Nf5 {[%clk 0:02:44]} 13. Be3 {[%clk 0:01:12]}  f6 {[%clk 0:02:43]} 14. exf6 {[%clk 0:01:00]}  Qxf6 {[%clk 0:02:44]} 15. Bg4 {[%clk 0:00:33]}  Nfxd4 {[%clk 0:02:43]} 16. Qd2 {[%clk 0:00:21]}  Nf5 {[%clk 0:02:38]} 17. Bg5 {[%clk 0:00:20]}  Qf7 {[%clk 0:02:36]} 18. Rae1 {[%clk 0:00:19]}  Rae8 {[%clk 0:02:34]} 19. Nb5 {[%clk 0:00:18]}  Qd7 {[%clk 0:02:30]} 20. a4 {[%clk 0:00:12]}  a6 {[%clk 0:02:30]} 21. Nc3 {[%clk 0:00:12]}  Ncd4 {[%clk 0:02:20]} 22. Be3 {[%clk 0:00:09]}  Nxe3 {[%clk 0:02:16]} 23. fxe3 {[%clk 0:00:09]}  Nf5 {[%clk 0:02:14]} 24. Rf2 {[%clk 0:00:08]}  b5 {[%clk 0:02:04]} 25. axb5 {[%clk 0:00:07]}  axb5 {[%clk 0:02:05]} 26. Ref1 {[%clk 0:00:08]}  b4 {[%clk 0:02:02]} 27. Nd1 {[%clk 0:00:08]}  Qb5 {[%clk 0:01:55]} 28. Bxf5 {[%clk 0:00:07]}  Rxf5 {[%clk 0:01:54]} 29. Rxf5 {[%clk 0:00:04]}  exf5 {[%clk 0:01:54]} 30. g4 {[%clk 0:00:01]}  fxg4 {[%clk 0:01:52]} 31. hxg4 {[%clk 0:00:01]}  Qc4 {[%clk 0:01:52]} 32. Nf2 {[%clk 0:00:01]}  b3 {[%clk 0:01:50]} 33. Rd1 {[%clk 0:00:02]}  d4 {[%clk 0:01:39]} 34. exd4 {[%clk 0:00:02]}  Re2 {[%clk 0:01:39]} 35. Qd3 {[%clk 0:00:02]}  Qxd3 {[%clk 0:01:38]} 36. Rxd3 {[%clk 0:00:03]}  Rxb2 {[%clk 0:01:38]} 37. d5 {[%clk 0:00:03]}  Kf7 {[%clk 0:01:34]} 38. d6 {[%clk 0:00:03]}  Ke8 {[%clk 0:01:34]} 39. Ne4 {[%clk 0:00:03]}  Rb1+ {[%clk 0:01:27]} 40. Kg2 {[%clk 0:00:03]}  b2 {[%clk 0:01:27]} 41. d7+ {[%clk 0:00:03]}  Kd8 {[%clk 0:01:26]} 42. Nc5 {[%clk 0:00:03]}  Rg1+ {[%clk 0:01:24]} 43. Kxg1 {[%clk 0:00:02]}  b1=Q+ {[%clk 0:01:24]} 44. Kg2 {[%clk 0:00:00]}  Qb6 {[%clk 0:01:20]} 0-1


[Site "https://www.chess.com"]

[Event "Titled Tuesday Blitz May 9 Late 2023"]
[White "Salinas Herrera, Pablo"]
[Black "Nakamura, Hikaru"]
[WhiteFideId "3407128"]
[BlackFideId "2016192"]
[WhiteElo "2546"]
[BlackElo "2885"]
[Result "0-1"]
[Round "04"]
[TimeControl "180+2"]
[Date "2023.05.09"]
[WhiteClock "0:00:04"]
[BlackClock "0:01:27"]

1. e4 {[%clk 0:03:00]}  e5 {[%clk 0:02:58]} 2. Nf3 {[%clk 0:03:00]}  Nc6 {[%clk 0:02:59]} 3. Bb5 {[%clk 0:03:00]}  d6 {[%clk 0:02:58]} 4. Bxc6+ {[%clk 0:02:59]}  bxc6 {[%clk 0:02:58]} 5. d4 {[%clk 0:03:00]}  f6 {[%clk 0:02:59]} 6. O-O {[%clk 0:03:00]}  Ne7 {[%clk 0:02:58]} 7. Qd3 {[%clk 0:03:00]}  a5 {[%clk 0:02:57]} 8. Re1 {[%clk 0:03:00]}  Ba6 {[%clk 0:02:57]} 9. Qe3 {[%clk 0:03:00]}  Ng6 {[%clk 0:02:56]} 10. Nc3 {[%clk 0:03:00]}  Be7 {[%clk 0:02:56]} 11. b3 {[%clk 0:02:58]}  O-O {[%clk 0:02:56]} 12. Bb2 {[%clk 0:02:59]}  Nf4 {[%clk 0:02:56]} 13. Rad1 {[%clk 0:02:57]}  Qe8 {[%clk 0:02:56]} 14. g3 {[%clk 0:02:47]}  Nh3+ {[%clk 0:02:53]} 15. Kg2 {[%clk 0:02:48]}  Bc8 {[%clk 0:02:51]} 16. Nh4 {[%clk 0:02:43]}  Qh5 {[%clk 0:02:34]} 17. f3 {[%clk 0:02:24]}  Ng5 {[%clk 0:02:26]} 18. Ne2 {[%clk 0:02:04]}  Bh3+ {[%clk 0:02:21]} 19. Kh1 {[%clk 0:01:56]}  Rae8 {[%clk 0:02:22]} 20. Ng1 {[%clk 0:01:56]}  Bc8 {[%clk 0:02:19]} 21. a4 {[%clk 0:01:53]}  Nh3 {[%clk 0:02:15]} 22. Nxh3 {[%clk 0:01:26]}  Bxh3 {[%clk 0:02:16]} 23. Qf2 {[%clk 0:01:26]}  f5 {[%clk 0:01:44]} 24. Nxf5 {[%clk 0:01:26]}  Bxf5 {[%clk 0:01:44]} 25. exf5 {[%clk 0:01:27]}  Rxf5 {[%clk 0:01:44]} 26. dxe5 {[%clk 0:00:50]}  Rxf3 {[%clk 0:01:43]} 27. Qg2 {[%clk 0:00:50]}  Ref8 {[%clk 0:01:31]} 28. exd6 {[%clk 0:00:50]}  Bxd6 {[%clk 0:01:32]} 29. Rf1 {[%clk 0:00:20]}  Rf2 {[%clk 0:01:29]} 30. g4 {[%clk 0:00:04]}  Rxf1+ {[%clk 0:01:27]} 0-1


[Site "https://www.chess.com"]

[Event "Titled Tuesday Blitz May 9 Late 2023"]
[White "Carlsen, Magnus"]
[Black "Kobo, Ori"]
[WhiteFideId "1503014"]
[BlackFideId "2812320"]
[WhiteElo "2852"]
[BlackElo "2454"]
[Result "1-0"]
[Round "04"]
[TimeControl "180+2"]
[Date "2023.05.09"]
[WhiteClock "0:00:35"]
[BlackClock "0:00:05"]

1. h4 {[%clk 0:02:55]}  d5 {[%clk 0:02:58]} 2. d4 {[%clk 0:02:52]}  Nf6 {[%clk 0:02:58]} 3. Nf3 {[%clk 0:02:47]}  Bf5 {[%clk 0:02:56]} 4. c4 {[%clk 0:02:36]}  e6 {[%clk 0:02:56]} 5. Nc3 {[%clk 0:02:31]}  Bb4 {[%clk 0:02:53]} 6. h5 {[%clk 0:02:23]}  h6 {[%clk 0:02:52]} 7. e3 {[%clk 0:02:17]}  O-O {[%clk 0:02:40]} 8. Bd3 {[%clk 0:02:14]}  Ne4 {[%clk 0:02:35]} 9. Qc2 {[%clk 0:02:10]}  c5 {[%clk 0:02:32]} 10. O-O {[%clk 0:02:07]}  Bxc3 {[%clk 0:02:27]} 11. bxc3 {[%clk 0:02:07]}  Nc6 {[%clk 0:02:15]} 12. Ba3 {[%clk 0:02:06]}  Qa5 {[%clk 0:02:10]} 13. cxd5 {[%clk 0:02:02]}  exd5 {[%clk 0:01:48]} 14. Bxc5 {[%clk 0:02:00]}  Rfe8 {[%clk 0:01:42]} 15. Rab1 {[%clk 0:01:56]}  Qc7 {[%clk 0:01:35]} 16. c4 {[%clk 0:01:51]}  dxc4 {[%clk 0:01:29]} 17. Qxc4 {[%clk 0:01:51]}  Qd7 {[%clk 0:01:23]} 18. Ba3 {[%clk 0:01:39]}  Rac8 {[%clk 0:01:19]} 19. Qb5 {[%clk 0:01:39]}  Bg4 {[%clk 0:01:10]} 20. Ne5 {[%clk 0:01:36]}  Rxe5 {[%clk 0:00:35]} 21. dxe5 {[%clk 0:01:36]}  a6 {[%clk 0:00:32]} 22. Qc4 {[%clk 0:01:15]}  Nd2 {[%clk 0:00:31]} 23. Qf4 {[%clk 0:01:13]}  Qxd3 {[%clk 0:00:28]} 24. Qxg4 {[%clk 0:01:13]}  Rd8 {[%clk 0:00:20]} 25. e6 {[%clk 0:01:00]}  Nxb1 {[%clk 0:00:17]} 26. Bb2 {[%clk 0:00:54]}  Nc3 {[%clk 0:00:13]} 27. Kh2 {[%clk 0:00:48]}  f5 {[%clk 0:00:07]} 28. Qg3 {[%clk 0:00:45]}  Re8 {[%clk 0:00:07]} 29. Rc1 {[%clk 0:00:38]}  Rxe6 {[%clk 0:00:07]} 30. Rxc3 {[%clk 0:00:37]}  Qd6 {[%clk 0:00:07]} 31. Rd3 {[%clk 0:00:35]}  Qxg3+ {[%clk 0:00:07]} 32. Kxg3 {[%clk 0:00:36]}  Re7 {[%clk 0:00:07]} 33. Kf4 {[%clk 0:00:36]}  Ne5 {[%clk 0:00:05]} 34. Bxe5 {[%clk 0:00:35]} 1-0


[Site "https://www.chess.com"]

[Event "Titled Tuesday Blitz May 9 Late 2023"]
[White "Kuznetsov, Felix"]
[Black "Andreikin, Dmitry"]
[WhiteFideId "34147990"]
[BlackFideId "4158814"]
[WhiteElo "2281"]
[BlackElo "2736"]
[Result "1/2-1/2"]
[Round "04"]
[TimeControl "180+2"]
[Date "2023.05.09"]
[WhiteClock "0:00:12"]
[BlackClock "0:00:36"]

1. e4 {[%clk 0:03:00]}  e6 {[%clk 0:02:56]} 2. d4 {[%clk 0:03:00]}  d5 {[%clk 0:02:57]} 3. Nd2 {[%clk 0:03:01]}  c5 {[%clk 0:02:55]} 4. Ngf3 {[%clk 0:03:01]}  cxd4 {[%clk 0:02:52]} 5. exd5 {[%clk 0:03:01]}  Nc6 {[%clk 0:02:53]} 6. dxc6 {[%clk 0:03:01]}  bxc6 {[%clk 0:02:54]} 7. Bd3 {[%clk 0:02:50]}  Nf6 {[%clk 0:02:52]} 8. O-O {[%clk 0:02:49]}  Be7 {[%clk 0:02:51]} 9. Ne4 {[%clk 0:02:49]}  O-O {[%clk 0:02:50]} 10. Bg5 {[%clk 0:02:48]}  Nd5 {[%clk 0:02:46]} 11. Bxe7 {[%clk 0:02:47]}  Qxe7 {[%clk 0:02:47]} 12. Nxd4 {[%clk 0:02:47]}  c5 {[%clk 0:02:47]} 13. Nf3 {[%clk 0:02:42]}  Bb7 {[%clk 0:02:48]} 14. Qd2 {[%clk 0:02:28]}  Rad8 {[%clk 0:02:43]} 15. Qg5 {[%clk 0:02:28]}  f6 {[%clk 0:02:43]} 16. Qg3 {[%clk 0:02:23]}  e5 {[%clk 0:02:40]} 17. Bc4 {[%clk 0:02:19]}  Kh8 {[%clk 0:02:39]} 18. Bxd5 {[%clk 0:02:19]}  Rxd5 {[%clk 0:02:37]} 19. Nc3 {[%clk 0:02:16]}  Rd6 {[%clk 0:02:34]} 20. Rad1 {[%clk 0:02:16]}  Re6 {[%clk 0:02:16]} 21. Nd5 {[%clk 0:02:06]}  Qf7 {[%clk 0:02:14]} 22. c4 {[%clk 0:02:05]}  e4 {[%clk 0:02:14]} 23. Nh4 {[%clk 0:02:00]}  f5 {[%clk 0:02:13]} 24. Nf4 {[%clk 0:01:34]}  Rh6 {[%clk 0:02:09]} 25. Qg5 {[%clk 0:01:17]}  Qf6 {[%clk 0:01:42]} 26. Qxf6 {[%clk 0:01:11]}  Rhxf6 {[%clk 0:01:43]} 27. Nd5 {[%clk 0:01:08]}  Bxd5 {[%clk 0:01:41]} 28. Rxd5 {[%clk 0:01:05]}  g5 {[%clk 0:01:41]} 29. Nxf5 {[%clk 0:00:58]}  Rxf5 {[%clk 0:01:42]} 30. Rxf5 {[%clk 0:00:58]}  Rxf5 {[%clk 0:01:43]} 31. Rd1 {[%clk 0:00:58]}  Rf6 {[%clk 0:01:36]} 32. Rd5 {[%clk 0:00:57]}  Ra6 {[%clk 0:01:33]} 33. a3 {[%clk 0:00:38]}  Rb6 {[%clk 0:01:33]} 34. Rxg5 {[%clk 0:00:35]}  Rxb2 {[%clk 0:01:32]} 35. g4 {[%clk 0:00:34]}  Ra2 {[%clk 0:01:20]} 36. Rxc5 {[%clk 0:00:34]}  Rxa3 {[%clk 0:01:20]} 37. Rc7 {[%clk 0:00:31]}  e3 {[%clk 0:01:12]} 38. fxe3 {[%clk 0:00:30]}  Rxe3 {[%clk 0:01:13]} 39. Rxa7 {[%clk 0:00:24]}  Re4 {[%clk 0:01:11]} 40. Rc7 {[%clk 0:00:24]}  Rxg4+ {[%clk 0:01:11]} 41. Kf2 {[%clk 0:00:24]}  Kg8 {[%clk 0:00:55]} 42. c5 {[%clk 0:00:24]}  Rc4 {[%clk 0:00:55]} 43. c6 {[%clk 0:00:24]}  Kf8 {[%clk 0:00:55]} 44. Ke3 {[%clk 0:00:17]}  Ke8 {[%clk 0:00:55]} 45. Kd3 {[%clk 0:00:17]}  Rh4 {[%clk 0:00:38]} 46. Rg7 {[%clk 0:00:14]}  Kd8 {[%clk 0:00:37]} 47. c7+ {[%clk 0:00:11]}  Kc8 {[%clk 0:00:37]} 48. h3 {[%clk 0:00:10]}  Rxh3+ {[%clk 0:00:37]} 49. Ke4 {[%clk 0:00:11]}  Rh5 {[%clk 0:00:36]} 50. Kf4 {[%clk 0:00:11]}  Rc5 {[%clk 0:00:36]} 51. Rxh7 {[%clk 0:00:11]}  Rxc7 {[%clk 0:00:36]} 52. Rxc7+ {[%clk 0:00:12]}  Kxc7 {[%clk 0:00:36]} 1/2-1/2


[Site "https://www.chess.com"]

[Event "Titled Tuesday Blitz May 9 Late 2023"]
[White "Martinez Alcantara, Jose Eduardo"]
[Black "Sieciechowicz, Marcin"]
[WhiteFideId "3805662"]
[BlackFideId "1130170"]
[WhiteElo "2711"]
[BlackElo "2302"]
[Result "1-0"]
[Round "04"]
[TimeControl "180+2"]
[Date "2023.05.09"]
[WhiteClock "0:00:43"]
[BlackClock "0:00:00"]

1. e4 {[%clk 0:03:00]}  e6 {[%clk 0:03:00]} 2. d4 {[%clk 0:03:00]}  d5 {[%clk 0:03:01]} 3. Nd2 {[%clk 0:03:01]}  c5 {[%clk 0:03:00]} 4. Ngf3 {[%clk 0:03:02]}  cxd4 {[%clk 0:03:00]} 5. Nxd4 {[%clk 0:03:02]}  Nf6 {[%clk 0:03:00]} 6. e5 {[%clk 0:03:02]}  Nfd7 {[%clk 0:03:00]} 7. N2f3 {[%clk 0:03:03]}  Nc6 {[%clk 0:02:59]} 8. Nxc6 {[%clk 0:03:01]}  bxc6 {[%clk 0:03:00]} 9. Bd3 {[%clk 0:03:02]}  Qc7 {[%clk 0:02:55]} 10. Qe2 {[%clk 0:03:01]}  Nc5 {[%clk 0:02:54]} 11. O-O {[%clk 0:03:01]}  Be7 {[%clk 0:02:54]} 12. Be3 {[%clk 0:02:59]}  h6 {[%clk 0:02:54]} 13. Bxc5 {[%clk 0:02:57]}  Bxc5 {[%clk 0:02:55]} 14. c3 {[%clk 0:02:58]}  O-O {[%clk 0:02:52]} 15. Rae1 {[%clk 0:02:52]}  a5 {[%clk 0:02:51]} 16. Nd4 {[%clk 0:02:48]}  Rb8 {[%clk 0:02:44]} 17. b3 {[%clk 0:02:34]}  a4 {[%clk 0:02:38]} 18. Bc2 {[%clk 0:02:01]}  axb3 {[%clk 0:02:29]} 19. axb3 {[%clk 0:02:02]}  Qb6 {[%clk 0:02:22]} 20. Qd3 {[%clk 0:02:02]}  g6 {[%clk 0:02:21]} 21. Qg3 {[%clk 0:02:02]}  Kg7 {[%clk 0:02:12]} 22. Rd1 {[%clk 0:02:01]}  Bd7 {[%clk 0:01:56]} 23. h4 {[%clk 0:01:56]}  h5 {[%clk 0:01:40]} 24. Ne2 {[%clk 0:01:55]}  Rh8 {[%clk 0:01:21]} 25. Nf4 {[%clk 0:01:53]}  Rh6 {[%clk 0:01:12]} 26. Rfe1 {[%clk 0:01:41]}  Be7 {[%clk 0:01:11]} 27. Rd3 {[%clk 0:01:34]}  Qd8 {[%clk 0:01:02]} 28. Nh3 {[%clk 0:01:17]}  Bxh4 {[%clk 0:01:01]} 29. Qf4 {[%clk 0:01:18]}  c5 {[%clk 0:00:41]} 30. Ra1 {[%clk 0:01:08]}  Rh8 {[%clk 0:00:17]} 31. Rf3 {[%clk 0:01:04]}  Rf8 {[%clk 0:00:16]} 32. Ra7 {[%clk 0:01:03]}  Be8 {[%clk 0:00:15]} 33. Rg3 {[%clk 0:00:45]}  Bxg3 {[%clk 0:00:09]} 34. Qxg3 {[%clk 0:00:46]}  Ra8 {[%clk 0:00:00]} 35. Qxg6+ {[%clk 0:00:43]} 1-0


[Site "https://www.chess.com"]

[Event "Titled Tuesday Blitz May 9 Late 2023"]
[White "Abdrlauf, Elham"]
[Black "Grigorov, Grigor"]
[WhiteFideId "1533533"]
[BlackFideId "2907313"]
[WhiteElo "2466"]
[BlackElo "2510"]
[Result "0-1"]
[Round "04"]
[TimeControl "180+2"]
[Date "2023.05.09"]
[WhiteClock "0:00:00"]
[BlackClock "0:00:54"]

1. e4 {[%clk 0:03:00]}  c6 {[%clk 0:02:59]} 2. d4 {[%clk 0:03:00]}  d5 {[%clk 0:02:59]} 3. Nc3 {[%clk 0:03:01]}  dxe4 {[%clk 0:02:59]} 4. Nxe4 {[%clk 0:03:02]}  Nf6 {[%clk 0:02:59]} 5. Nxf6+ {[%clk 0:03:02]}  exf6 {[%clk 0:02:59]} 6. c3 {[%clk 0:03:03]}  Bd6 {[%clk 0:02:59]} 7. Bd3 {[%clk 0:03:03]}  Na6 {[%clk 0:02:58]} 8. Ne2 {[%clk 0:03:01]}  Nc7 {[%clk 0:02:57]} 9. O-O {[%clk 0:03:02]}  O-O {[%clk 0:02:57]} 10. Bf4 {[%clk 0:03:01]}  Bg4 {[%clk 0:02:55]} 11. Bxd6 {[%clk 0:02:55]}  Qxd6 {[%clk 0:02:56]} 12. Qd2 {[%clk 0:02:55]}  Bxe2 {[%clk 0:02:54]} 13. Bxe2 {[%clk 0:02:55]}  Rfe8 {[%clk 0:02:51]} 14. Rfd1 {[%clk 0:02:55]}  Rad8 {[%clk 0:02:42]} 15. a4 {[%clk 0:02:52]}  Ne6 {[%clk 0:02:35]} 16. a5 {[%clk 0:02:44]}  g6 {[%clk 0:02:30]} 17. a6 {[%clk 0:02:42]}  b6 {[%clk 0:02:30]} 18. Bc4 {[%clk 0:02:29]}  Ng5 {[%clk 0:02:27]} 19. Re1 {[%clk 0:02:27]}  Ne4 {[%clk 0:02:24]} 20. Qc2 {[%clk 0:02:23]}  f5 {[%clk 0:02:24]} 21. Bd3 {[%clk 0:02:19]}  Nf6 {[%clk 0:02:23]} 22. h3 {[%clk 0:02:07]}  Rxe1+ {[%clk 0:02:18]} 23. Rxe1 {[%clk 0:02:06]}  c5 {[%clk 0:02:19]} 24. dxc5 {[%clk 0:01:11]}  Qxc5 {[%clk 0:01:42]} 25. Be2 {[%clk 0:00:56]}  Ne4 {[%clk 0:01:39]} 26. Bd3 {[%clk 0:00:13]}  Rxd3 {[%clk 0:01:37]} 27. Qxd3 {[%clk 0:00:11]}  Qxf2+ {[%clk 0:01:37]} 28. Kh2 {[%clk 0:00:11]}  Qxe1 {[%clk 0:01:36]} 29. Qd8+ {[%clk 0:00:08]}  Kg7 {[%clk 0:01:36]} 30. Qc7 {[%clk 0:00:06]}  Nd2 {[%clk 0:00:55]} 31. Qxa7 {[%clk 0:00:01]}  Nf1+ {[%clk 0:00:55]} 32. Kg1 {[%clk 0:00:02]}  Ng3+ {[%clk 0:00:55]} 33. Kh2 {[%clk 0:00:00]}  f4 {[%clk 0:00:54]} 0-1


[Site "https://www.chess.com"]

[Event "Titled Tuesday Blitz May 9 Late 2023"]
[White "Sarana, Alexey"]
[Black "Matinian, Nikita"]
[WhiteFideId "24133795"]
[BlackFideId "24129100"]
[WhiteElo "2714"]
[BlackElo "2422"]
[Result "1-0"]
[Round "04"]
[TimeControl "180+2"]
[Date "2023.05.09"]
[WhiteClock "0:02:18"]
[BlackClock "0:01:36"]

1. d4 {[%clk 0:02:57]}  Nf6 {[%clk 0:02:59]} 2. c4 {[%clk 0:02:58]}  e6 {[%clk 0:03:00]} 3. Nc3 {[%clk 0:02:59]}  Bb4 {[%clk 0:02:59]} 4. e3 {[%clk 0:02:59]}  b6 {[%clk 0:02:58]} 5. Ne2 {[%clk 0:02:59]}  Ba6 {[%clk 0:02:58]} 6. a3 {[%clk 0:02:56]}  Bxc3+ {[%clk 0:02:54]} 7. Nxc3 {[%clk 0:02:57]}  O-O {[%clk 0:02:47]} 8. d5 {[%clk 0:02:55]}  e5 {[%clk 0:02:40]} 9. Be2 {[%clk 0:02:48]}  d6 {[%clk 0:02:39]} 10. O-O {[%clk 0:02:46]}  Bc8 {[%clk 0:02:35]} 11. e4 {[%clk 0:02:45]}  a5 {[%clk 0:02:35]} 12. Rb1 {[%clk 0:02:38]}  Nbd7 {[%clk 0:02:33]} 13. b4 {[%clk 0:02:39]}  axb4 {[%clk 0:02:32]} 14. axb4 {[%clk 0:02:40]}  Ne8 {[%clk 0:02:16]} 15. Be3 {[%clk 0:02:35]}  g6 {[%clk 0:02:14]} 16. Ra1 {[%clk 0:02:29]}  Rxa1 {[%clk 0:02:13]} 17. Qxa1 {[%clk 0:02:30]}  f5 {[%clk 0:02:06]} 18. f3 {[%clk 0:02:28]}  f4 {[%clk 0:02:05]} 19. Bf2 {[%clk 0:02:29]}  g5 {[%clk 0:02:05]} 20. Qa8 {[%clk 0:02:25]}  Ndf6 {[%clk 0:02:01]} 21. Nb5 {[%clk 0:02:24]}  Qe7 {[%clk 0:01:49]} 22. Qxc8 {[%clk 0:02:22]}  g4 {[%clk 0:01:40]} 23. Qe6+ {[%clk 0:02:18]}  Rf7 {[%clk 0:01:38]} 24. Qxe7 {[%clk 0:02:18]}  Rxe7 {[%clk 0:01:36]} 25. Bh4 {[%clk 0:02:18]} 1-0


[Site "https://www.chess.com"]

[Event "Titled Tuesday Blitz May 9 Late 2023"]
[White "Volkov, Maksim"]
[Black "Kozak, Adam"]
[WhiteFideId "54123070"]
[BlackFideId "753246"]
[WhiteElo "2297"]
[BlackElo "2469"]
[Result "0-1"]
[Round "04"]
[TimeControl "180+2"]
[Date "2023.05.09"]
[WhiteClock "0:00:04"]
[BlackClock "0:00:05"]

1. d4 {[%clk 0:03:00]}  Nf6 {[%clk 0:02:58]} 2. c4 {[%clk 0:03:01]}  e6 {[%clk 0:02:58]} 3. g3 {[%clk 0:03:01]}  c5 {[%clk 0:02:58]} 4. d5 {[%clk 0:03:01]}  exd5 {[%clk 0:02:59]} 5. cxd5 {[%clk 0:03:02]}  d6 {[%clk 0:02:59]} 6. Nc3 {[%clk 0:03:03]}  g6 {[%clk 0:03:00]} 7. Bg2 {[%clk 0:03:03]}  Bg7 {[%clk 0:03:01]} 8. Nf3 {[%clk 0:03:04]}  O-O {[%clk 0:03:01]} 9. O-O {[%clk 0:03:04]}  Re8 {[%clk 0:03:02]} 10. Bf4 {[%clk 0:03:05]}  Ne4 {[%clk 0:03:02]} 11. Nxe4 {[%clk 0:03:04]}  Rxe4 {[%clk 0:03:02]} 12. Nd2 {[%clk 0:03:05]}  Rxf4 {[%clk 0:03:03]} 13. gxf4 {[%clk 0:03:06]}  Bxb2 {[%clk 0:03:03]} 14. Rb1 {[%clk 0:03:06]}  Bg7 {[%clk 0:03:03]} 15. e4 {[%clk 0:03:05]}  Nd7 {[%clk 0:02:57]} 16. Re1 {[%clk 0:03:05]}  Qh4 {[%clk 0:02:53]} 17. e5 {[%clk 0:02:47]}  Qxf4 {[%clk 0:02:49]} 18. e6 {[%clk 0:02:29]}  Ne5 {[%clk 0:02:48]} 19. Re4 {[%clk 0:02:29]}  Qf5 {[%clk 0:02:22]} 20. Ra4 {[%clk 0:02:21]}  fxe6 {[%clk 0:01:40]} 21. dxe6 {[%clk 0:02:21]}  Bxe6 {[%clk 0:01:39]} 22. Rxb7 {[%clk 0:02:11]}  Rf8 {[%clk 0:01:38]} 23. Ne4 {[%clk 0:01:54]}  Ng4 {[%clk 0:01:21]} 24. Qxd6 {[%clk 0:01:18]}  Nxf2 {[%clk 0:00:28]} 25. Ng3 {[%clk 0:01:15]}  Nh3+ {[%clk 0:00:18]} 26. Bxh3 {[%clk 0:01:08]}  Qf2+ {[%clk 0:00:14]} 27. Kh1 {[%clk 0:01:08]}  Bxh3 {[%clk 0:00:14]} 28. Rxg7+ {[%clk 0:00:26]}  Kxg7 {[%clk 0:00:15]} 29. Qe5+ {[%clk 0:00:22]}  Kg8 {[%clk 0:00:09]} 30. Qd5+ {[%clk 0:00:21]}  Rf7 {[%clk 0:00:09]} 31. Qe4 {[%clk 0:00:04]}  Qf1+ {[%clk 0:00:04]} 32. Nxf1 {[%clk 0:00:04]}  Rxf1# {[%clk 0:00:05]} 0-1


[Site "https://www.chess.com"]

[Event "Titled Tuesday Blitz May 9 Late 2023"]
[White "Ibrahimli, Murad"]
[Black "Seemann, Jakub"]
[WhiteFideId "13410229"]
[BlackFideId "21874697"]
[WhiteElo "2364"]
[BlackElo "2364"]
[Result "1-0"]
[Round "04"]
[TimeControl "180+2"]
[Date "2023.05.09"]
[WhiteClock "0:00:11"]
[BlackClock "0:00:01"]

1. e4 {[%clk 0:03:00]}  c5 {[%clk 0:02:59]} 2. Nf3 {[%clk 0:03:00]}  d6 {[%clk 0:02:59]} 3. Nc3 {[%clk 0:03:00]}  Nf6 {[%clk 0:02:59]} 4. e5 {[%clk 0:03:00]}  dxe5 {[%clk 0:02:59]} 5. Nxe5 {[%clk 0:03:01]}  a6 {[%clk 0:02:58]} 6. g3 {[%clk 0:02:59]}  Qd6 {[%clk 0:02:57]} 7. Nc4 {[%clk 0:02:55]}  Qc7 {[%clk 0:02:57]} 8. Bg2 {[%clk 0:02:53]}  Nc6 {[%clk 0:02:57]} 9. a4 {[%clk 0:02:49]}  Bg4 {[%clk 0:02:54]} 10. f3 {[%clk 0:02:44]}  Bf5 {[%clk 0:02:49]} 11. Ne3 {[%clk 0:02:43]}  Be6 {[%clk 0:02:46]} 12. O-O {[%clk 0:02:43]}  g6 {[%clk 0:02:46]} 13. f4 {[%clk 0:02:42]}  Nd4 {[%clk 0:02:45]} 14. g4 {[%clk 0:02:36]}  h5 {[%clk 0:02:40]} 15. g5 {[%clk 0:02:29]}  Ng4 {[%clk 0:02:40]} 16. Ned5 {[%clk 0:02:25]}  Qd6 {[%clk 0:02:04]} 17. h3 {[%clk 0:02:22]}  Bg7 {[%clk 0:02:03]} 18. a5 {[%clk 0:02:16]}  Nf5 {[%clk 0:02:00]} 19. Ne3 {[%clk 0:01:33]}  Ngxe3 {[%clk 0:01:31]} 20. dxe3 {[%clk 0:01:34]}  O-O-O {[%clk 0:01:31]} 21. Qxd6 {[%clk 0:01:15]}  Nxd6 {[%clk 0:01:28]} 22. Na4 {[%clk 0:01:14]}  c4 {[%clk 0:01:01]} 23. Re1 {[%clk 0:01:10]}  f6 {[%clk 0:00:46]} 24. gxf6 {[%clk 0:01:07]}  Bxf6 {[%clk 0:00:44]} 25. e4 {[%clk 0:01:07]}  Bd4+ {[%clk 0:00:44]} 26. Be3 {[%clk 0:01:04]}  Nb5 {[%clk 0:00:41]} 27. Nc5 {[%clk 0:00:41]}  Bxc5 {[%clk 0:00:37]} 28. Bxc5 {[%clk 0:00:41]}  Rd2 {[%clk 0:00:37]} 29. f5 {[%clk 0:00:29]}  gxf5 {[%clk 0:00:33]} 30. exf5 {[%clk 0:00:27]}  Rg8 {[%clk 0:00:32]} 31. Rxe6 {[%clk 0:00:22]}  Rgxg2+ {[%clk 0:00:28]} 32. Kf1 {[%clk 0:00:22]}  Rh2 {[%clk 0:00:23]} 33. Rxe7 {[%clk 0:00:20]}  Rh1+ {[%clk 0:00:21]} 34. Bg1 {[%clk 0:00:20]}  Rxh3 {[%clk 0:00:22]} 35. f6 {[%clk 0:00:12]}  Rf3+ {[%clk 0:00:12]} 36. Ke1 {[%clk 0:00:13]}  Rd7 {[%clk 0:00:09]} 37. Bb6 {[%clk 0:00:10]}  Rxe7+ {[%clk 0:00:06]} 38. fxe7 {[%clk 0:00:10]}  Kd7 {[%clk 0:00:06]} 39. Bc5 {[%clk 0:00:10]}  Rf5 {[%clk 0:00:05]} 40. Rd1+ {[%clk 0:00:10]}  Ke8 {[%clk 0:00:01]} 41. Rd8+ {[%clk 0:00:11]} 1-0


[Site "https://www.chess.com"]